Cogmind - Beta 14 @@@ ROGUE MODE // 2025.01.06 @ 14:37:18 Player: jimmyl Result: Destroyed by S-10 Pest with Light Assault Rifle Performance ------------- Evolutions (1) 500 Regions Visited (5) 1000 Robots Destroyed (73) 365 Value Destroyed (2015) 2015 Prototype IDs (4) 80 Alien Tech Used (0) 0 Bonus (314) 314 TOTAL SCORE: 4274 Bonus ------- High Alert Combat Kills 114 Entered Garrisons 200 Cogmind --------- Core Integrity 0/400 Matter 246/300 Energy 163/265 System Corruption 0% Temperature Cool (12) Movement Rolling (170) Ox6 Location -9/Garrison Parts ------- > --- POWER (1) -------- Improved Ion Engine > --- PROPULSION (2) --- Wheel > --- UTILITY (4) ------ Heat Sink Cooling System High-capacity Storage Unit > --- WEAPON (2) ------- Ion Cannon Ion Cannon > --- INVENTORY (20) --- Ion Engine Ion Engine Wheel Compact Wheel Cooling System Hacking Suite Relay Coupler [NC] (29) Relay Coupler [Grunt] (31) Relay Coupler [Demolisher] (23) Improved EM Shotgun Improved Medium Laser Improved Medium Laser Ion Cannon Improved Assault Rifle Improved Assault Rifle Grenade Launcher Plasma Cutter Heavy Flail Makeshift Axe Peak State ------------ > --- POWER ------------ Ion Engine > --- PROPULSION ------- Wheel Compact Wheel > --- UTILITY ---------- Heat Sink Improved Heat Sink High-capacity Storage Unit Medium Armor Plating > --- WEAPON ----------- Ion Cannon Ion Cannon > --- INVENTORY -------- Ion Engine Ion Engine Wheel Wheel Wheel Compact Wheel Heat Sink Heat Sink Sensor Array Light Armor Plating Medium Armor Plating Hacking Suite Beam Rifle Ion Cannon Ion Cannon Assault Rifle Light Assault Rifle Grenade Launcher Grenade Launcher Makeshift Axe [Rating: 19] Favorites ----------- Power Ion Engine Engine Ion Engine Propulsion Light Treads Treads Light Treads Leg Aluminum Leg Wheel Wheel Utility Improved Heat Sink Device Improved Heat Sink Storage Large Storage Unit Processor Signal Interpreter Protection Medium Armor Plating Weapon Light Assault Rifle Energy Gun Improved Medium Laser Energy Cannon Ion Cannon Ballistic Gun Light Assault Rifle Launcher Grenade Launcher Impact Weapon Heavy Flail Build | -11 -10 -10 -9 -9 -9 ------- Run | Yrd Mat Min Mat Sto Gar Slots Evolved 2 | . . . 2 . . Power . | . . . . . . Propulsion . | . . . . . . Utility 2 | . . . 2 . . Weapon . | . . . . . . Parts Attached 69 | . 12 8 25 7 17 Power 7 | . 2 1 2 1 1 Engine 7 | . 2 1 2 1 1 Core . | . . . . . . Reactor . | . . . . . . Propulsion 8 | . 3 1 3 . 1 Treads 3 | . 3 . . . . Leg . | . . . . . . Wheel 5 | . . 1 3 . 1 Hover . | . . . . . . Flight . | . . . . . . Utility 18 | . 3 2 9 . 4 Device 9 | . 2 1 4 . 2 Storage 2 | . 1 . 1 . . Processor 1 | . . . 1 . . Hackware . | . . . . . . Protection 6 | . . 1 3 . 2 Artifact . | . . . . . . Weapon 36 | . 4 4 11 6 11 Energy Gun 7 | . . . 1 3 3 Energy Cannon 10 | . . . 5 3 2 Ballistic Gun 9 | . 4 2 3 . . Ballistic Cannon . | . . . . . . Launcher 6 | . . 2 2 . 2 Special Weapon . | . . . . . . Impact Weapon 4 | . . . . . 4 Slashing Weapon . | . . . . . . Piercing Weapon . | . . . . . . Special Melee Weapon . | . . . . . . Unidentified Prototypes 4 | . . . 2 2 . Parts Lost 16 | . 3 2 3 1 7 Power 5 | . 2 1 1 1 . Propulsion 5 | . . 1 2 . 2 Utility 4 | . . . . . 4 Weapon 2 | . 1 . . . 1 Highest Loss Streak 3 | . 2 2 1 1 3 To Critical Strikes . | . . . . . . Average Slot Usage (%) 97 | . 98 97 97 100 93 Engine 12 | . 13 12 10 11 11 Treads 14 | . 26 23 . . . Wheel 9 | . . 3 21 22 21 Device 15 | . 13 12 20 22 14 Storage 12 | . 14 14 11 11 11 Protection 5 | . . 1 10 11 13 Energy Gun 3 | . 3 . . 6 17 Energy Cannon 3 | . . . 12 15 . Ballistic Gun 14 | . 24 15 9 . . Launcher 3 | . . 12 . . 1 Peak Build Rating 19 | . 10 10 19 19 19 Average Rating 12 | . 9 9 15 18 17 On Entrance 11 | 6 6 10 10 19 19 Naked Turns . | . . . . . . Heaviest Build 67 | 12 28 34 67 67 63 Greatest Support 40 | 20 40 40 26 26 26 Greatest Overweight (x) 5 | . . 3 4 2 5 Average Overweight (x) 1 | . . . 2 2 2 Largest Inventory Capacity 20 | . 15 15 20 20 20 Average Capacity 16 | . 14 15 19 20 20 Most Carried 20 | . 14 14 20 20 20 Average Carried 13 | . 9 13 16 19 19 Final Capacity 20 | 8 15 15 20 20 20 Final Carried 20 | 6 14 14 20 20 19 Class Distribution -------------------- 67% | Mutant 32% | Scavenger-Mutant Dominant Class ---------------- Mutant | -10/Materials Mutant | -10/Mines Scavenger-Mutant | -9/Materials Mutant | -9/Storage Mutant | -9/Garrison Resources | -11 -10 -10 -9 -9 -9 ----------- Run | Yrd Mat Min Mat Sto Gar Matter Collected 1240 | 197 219 154 310 55 305 Remotely . | . . . . . . Salvage Created 2231 | . 569 56 916 113 577 Parts 167 | . 43 4 68 6 46 Haulers Intercepted 5 | . 2 . 2 1 . Recyclers Shooed 1 | . . . 1 . . Parts Field Recycled . | . . . . . . Retrieved Matter . | . . . . . . Parts Self-Destructed . | . . . . . . Prevented . | . . . . . . Kills | -11 -10 -10 -9 -9 -9 ------- Run | Yrd Mat Min Mat Sto Gar Combat Hostiles Destroyed 54 | . 10 3 20 1 20 Guns 26 | . 10 1 4 . 11 Cannons 15 | . . . 14 . 1 AOE 12 | . . 2 2 . 8 Classes Destroyed 9 | . 5 . 3 . 1 Worker 5 | . 1 . 4 . . Hauler 5 | . 2 . 2 1 . Recycler 1 | . . . 1 . . Operator 1 | . . . 1 . . Watcher 7 | . 3 . 3 1 . Swarmer 15 | . 3 . 7 . 5 Grunt 34 | . 7 3 12 1 11 Duelist 2 | . . . . . 2 Sentry 3 | . . . 1 . 2 Best Kill Streak 14 | . 3 2 14 3 6 Combat Bots Only 6 | . 3 2 4 1 6 Max Kills in Single Turn 3 | . 1 1 3 1 2 Gunslinging 1 | . . . . . 1 Exploded 2 | . . 1 2 . 1 Melee . | . . . . . . Uniques/NPCs Destroyed . | . . . . . . Combat | -11 -10 -10 -9 -9 -9 -------- Run | Yrd Mat Min Mat Sto Gar Hostile Shots Fired 323 | . 88 28 88 7 112 Missed 91 | . 26 8 24 3 30 Damage Taken 3017 | . 789 451 663 82 1032 Core 649 | . 171 71 157 14 236 Absorbed by Shields . | . . . . . . Redirected to Shielding 34 | . . . . . 34 Core Remaining (%) 51 | 100 . 3 . . . Volleys Fired 186 | . 64 13 56 8 45 Largest 2 | . 2 2 2 2 2 Hottest 120 | . 60 60 120 120 120 Shots Fired 355 | . 127 26 110 16 76 Gun 238 | . 127 20 41 . 50 Cannon 96 | . . . 68 16 12 Launcher 21 | . . 6 1 . 14 Special . | . . . . . . Kinetic 170 | . 109 20 41 . . Thermal 164 | . 18 . 68 16 62 Explosive 21 | . . 6 1 . 14 Electromagnetic . | . . . . . . Robot Hit Streak 23 | . 8 10 15 2 23 Robot Miss Streak 10 | . 4 1 3 3 10 Penetration Max . | . . . . . . Secondary Targets 3 | . 1 . . . 2 Max Gunslinging Chain 1 | . 1 . . . 1 Shots Hit Robots 217 | . 84 16 67 5 45 Core Hits 122 | . 34 12 43 2 31 Critical Kills 1 | . . . . 1 . Critical Parts Destroyed 1 | . 1 . . . . Critical Strikes 4 | . 1 . . 1 2 Burn 2 | . . . . . 2 Meltdown 1 | . . . . 1 . Destroy 1 | . 1 . . . . Melee Attacks 5 | . . . . . 5 Impact 5 | . . . . . 5 Slashing . | . . . . . . Piercing . | . . . . . . Sneak Attacks . | . . . . . . Combat Hostiles . | . . . . . . Follow-up Attacks . | . . . . . . Damage Inflicted 4087 | . 782 361 1381 139 1424 Guns 1833 | . 777 133 381 . 542 Cannons 1147 | . . . 811 139 197 Explosions 1102 | . . 228 189 . 685 Melee . | . . . . . . Ramming 5 | . 5 . . . . Kinetic 1122 | . 608 133 381 . . Thermal 1858 | . 169 . 811 139 739 Explosive 1102 | . . 228 189 . 685 Electromagnetic . | . . . . . . Impact . | . . . . . . Slashing . | . . . . . . Piercing . | . . . . . . Highest Corruption . | . . . . . . Average Corruption . | . . . . . . Corruption Purged . | . . . . . . Corruption Blocked . | . . . . . . Overload Shots . | . . . . . . Overflow Damage 30 | . . . 27 . 3 Projectiles 27 | . . . 27 . . Explosions 3 | . . . . . 3 Melee . | . . . . . . Knockbacks . | . . . . . . Impact . | . . . . . . Kinetic . | . . . . . . Secondary . | . . . . . . Self-Inflicted Damage . | . . . . . . Shots . | . . . . . . Rammed 1 | . 1 . . . . Targets Rammed 1 | . 1 . . . . Kicked . | . . . . . . Crushed . | . . . . . . Highest Temperature 150 | . 150 13 30 . 1 Average Temperature 50 | . 68 7 14 . 1 Received Heat Transfer 969 | . 471 69 183 27 219 Siege Activations . | . . . . . . Robots Corrupted . | . . . . . . Combat Hostiles . | . . . . . . Parts Fried . | . . . . . . Impact Corruptions . | . . . . . . Robots Melted 1 | . . . . 1 . Combat Hostiles 1 | . . . . 1 . Parts Melted 6 | . . . . 2 4 Heat Transferred 3742 | . 375 . 1517 222 1628 Parts Sabotaged . | . . . . . . Parts Stolen . | . . . . . . Parts Stripped . | . . . . . . Power Chain Reactions . | . . . . . . Alert | -11 -10 -10 -9 -9 -9 ------- Run | Yrd Mat Min Mat Sto Gar Peak Influence 652 | . 142 67 531 233 652 Initial 160 | . . . 11 160 154 Average 158 | . 54 20 283 194 427 Maximum Alert Level 2 | . . . 2 1 2 Low Security (%) 69 | . 100 100 29 56 11 Level 1 14 | . . . 42 43 18 Level 2 16 | . . . 28 . 70 Level 3 . | . . . . . . Level 4 . | . . . . . . Level 5 . | . . . . . . High Security . | . . . . . . Max Security . | . . . . . . Squads Dispatched 4 | . 2 . 2 . . Investigation 2 | . 1 . 1 . . Extermination . | . . . . . . Reinforcement 2 | . 1 . 1 . . Assault . | . . . . . . Garrison . | . . . . . . Intercept . | . . . . . . Searches Triggered . | . . . . . . Construction Impeded . | . . . . . . Haulers Reinforced . | . . . . . . Active Scanning Responses . | . . . . . . Cargo Convoy Interrupts . | . . . . . . Stealth | -11 -10 -10 -9 -9 -9 --------- Run | Yrd Mat Min Mat Sto Gar Distress Signals 4 | . 2 . 2 . . Communications Jammed . | . . . . . . Distress Signals . | . . . . . . Times Spotted 88 | . 17 13 30 3 25 Peak Tracking Total 16 | . 3 16 6 1 6 Tactical Retreats 7 | . 1 2 2 . 2 Traps | -11 -10 -10 -9 -9 -9 ------- Run | Yrd Mat Min Mat Sto Gar Traps Triggered 8 | . 1 . 1 1 5 Indirectly . | . . . . . . Trap Hack Attempts . | . . . . . . Triggered . | . . . . . . Disarmed . | . . . . . . Reprogrammed . | . . . . . . Reused . | . . . . . . Traps Extracted . | . . . . . . Installed . | . . . . . . Triggered . | . . . . . . Machines | -11 -10 -10 -9 -9 -9 ---------- Run | Yrd Mat Min Mat Sto Gar Machines Disabled 5 | . . . 3 1 1 Max in Single Turn 1 | . . . 1 1 1 Garrison Relay 1 | . . . . . 1 Machines Repaired . | . . . . . . Machines Dismantled . | . . . . . . Machines Sabotaged . | . . . . . . Overloaded Fab Kills . | . . . . . . Hacking | -11 -10 -10 -9 -9 -9 --------- Run | Yrd Mat Min Mat Sto Gar Machines Accessed 5 | . 1 . 2 1 1 Terminals 4 | . 1 . 2 . 1 Fabricators . | . . . . . . Repair Stations . | . . . . . . Recycling Units . | . . . . . . Scanalyzers . | . . . . . . Garrison Access 1 | . . . . 1 . Total Hacks 9 | . 2 . 4 2 1 Successful 5 | . 2 . 1 1 1 Failed 4 | . . . 3 1 . Catastrophic 1 | . . . 1 . . Database Lockouts . | . . . . . . Manual 3 | . . . 3 . . Terminals 7 | . 2 . 4 . 1 Fabricators . | . . . . . . Repair Stations . | . . . . . . Recycling Units . | . . . . . . Scanalyzers . | . . . . . . Garrison Access 2 | . . . . 2 . Terminal Hacks 4 | . 2 . 1 . 1 Emergency Access Points 1 | . . . . . 1 Hauler Manifests 1 | . 1 . . . . Zone Layout 2 | . 1 . 1 . . Fabricator Hacks . | . . . . . . Repair Station Hacks . | . . . . . . Recycling Unit Hacks . | . . . . . . Scanalyzer . | . . . . . . Garrison Access Hacks 1 | . . . . 1 . Unlock Access 1 | . . . . 1 . Unauthorized Hacks . | . . . . . . Terminals . | . . . . . . Fabricators . | . . . . . . Repair Stations . | . . . . . . Recycling Units . | . . . . . . Scanalyzers . | . . . . . . Garrison Access . | . . . . . . Data Cores Recovered . | . . . . . . Used . | . . . . . . Hacking Detections 2 | . . . 1 . 1 Full Trace Events 1 | . . . 1 . . Feedback Events . | . . . . . . Feedback Blocked . | . . . . . . Robot Schematics Acquired . | . . . . . . Robots Built . | . . . . . . Authchips . | . . . . . . Time . | . . . . . . Total Robot Build Rating . | . . . . . . Part Schematics Acquired . | . . . . . . Parts Built . | . . . . . . Authchips . | . . . . . . Time . | . . . . . . Total Part Build Rating . | . . . . . . Parts Repaired . | . . . . . . Time . | . . . . . . Parts Recycled . | . . . . . . Recycled Matter . | . . . . . . Retrieved Matter . | . . . . . . Retrieved Components . | . . . . . . Parts Scanalyzed . | . . . . . . Part Schematics Acquired . | . . . . . . Parts Damaged . | . . . . . . Bothacking | -11 -10 -10 -9 -9 -9 ------------ Run | Yrd Mat Min Mat Sto Gar Used RIF Installer . | . . . . . . Robots Hacked . | . . . . . . Non-combat . | . . . . . . Combat . | . . . . . . Robot Hacks Applied . | . . . . . . Relay Couplers Released 5 | . . . . . 5 Machine Destruction 5 | . . . . . 5 Fabnet Peak Effective % . | . . . . . . Robots Rewired . | . . . . . . Allies Hacked . | . . . . . . Hacks Repelled . | . . . . . . Allies | -11 -10 -10 -9 -9 -9 -------- Run | Yrd Mat Min Mat Sto Gar Total Allies . | . . . . . . Largest Group . | . . . . . . Highest-Rated Group . | . . . . . . Highest-Rated Ally . | . . . . . . Total Orders . | . . . . . . Ally Attacks . | . . . . . . Total Damage . | . . . . . . Kills . | . . . . . . Allies Corrupted . | . . . . . . Allies Melted . | . . . . . . Intel | -11 -10 -10 -9 -9 -9 ------- Run | Yrd Mat Min Mat Sto Gar Robot Analysis Total . | . . . . . . Derelict Logs Recovered . | . . . . . . Drone Launches . | . . . . . . Drone Recoveries . | . . . . . . Exploration | -11 -10 -10 -9 -9 -9 ------------- Run | Yrd Mat Min Mat Sto Gar Turns Passed 3601 | . 1200 904 816 149 532 Spaces Moved 1897 | 1 603 520 452 83 238 Core . | . . . . . . Treads 896 | . 574 322 . . . Legs 30 | 1 29 . . . . Wheels 971 | . . 198 452 83 238 Hover . | . . . . . . Flight . | . . . . . . Fastest Speed 110 | 120 120 110 110 120 110 Average Speed 136 | 120 158 144 115 120 111 Slowest Speed 240 | 120 160 240 140 120 155 Overloaded Moves . | . . . . . . Propulsion Burnouts . | . . . . . . Robots Hopped . | . . . . . . Cave-ins Triggered . | . . . . . . Exploration Rate (%) 45 | 2 90 84 43 18 33 Regions Visited 5 Branch Regions 2 Pre-discovered Areas . | . . . . . . Known Exits Taken 2 | . . . 1 1 . Unknown Exits Taken 3 | 1 1 1 . . . Scrap Searched 1 | . . 1 . . . Spaces Dug . | . . . . . . Terrain Destroyed 65 | . . 24 6 4 31 Melee . | . . . . . . Projectile 7 | . . . 3 4 . AOE 58 | . . 24 3 . 31 Terrain Rammed . | . . . . . . Walls Destroyed . | . . . . . . Machines Disabled . | . . . . . . Actions | -11 -10 -10 -9 -9 -9 --------- Run | Yrd Mat Min Mat Sto Gar Total 2563 | . 746 646 638 115 418 Wait 288 | . 42 102 67 11 66 Move 1893 | . 602 519 451 83 238 Hop . | . . . . . . Pick Up 46 | . 16 3 21 2 4 Fast Attach 16 | . 3 . 7 3 3 Attach 25 | . 7 3 10 1 4 Detach 1 | . . . 1 . . Swap 28 | . 2 5 8 3 10 Drop 34 | . 9 1 17 4 3 Fire 186 | . 64 13 56 8 45 Melee 5 | . . . . . 5 Ram . | . . . . . . Kick . | . . . . . . Crush 1 | . 1 . . . . Escape Stasis 40 | . . . . . 40 Rewire . | . . . . . . Trap . | . . . . . . Miscellaneous . | . . . . . . Route ------- -11/Scrapyard -10/Materials (discovered 5 exits: *Mat x3 / [*Min x2]) -10/Mines (discovered 2 exits: *Mat x2) -9/Materials (discovered 2 exits: [*Min] / *Sto) -9/Storage -9/Garrison History --------- Turn | Location | Event 1 | -11/Scrapyard | Discovered new exit (range 0) 1 | -11/Scrapyard | Entered Materials 139 | -10/Materials | Discovered new exit (range 13) 333 | -10/Materials | Core integrity fell below 50% 342 | -10/Materials | Build established: Mutant 367 | -10/Materials | Discovered new exit (range 8) 897 | -10/Materials | Discovered new exit (range 4) 1020 | -10/Materials | Discovered new exit (range 15) 1166 | -10/Materials | Discovered new exit (range 16) 1201 | -10/Materials | Entered Mines 1255 | -10/Mines | Met a Derelict bent on vengeance 1306 | -10/Mines | Assembled infested the area 1540 | -10/Mines | Discovered new exit (range 10) 1805 | -10/Mines | Core integrity fell below 20% 1906 | -10/Mines | Discovered new exit (range 5) 2008 | -10/Mines | A weapon hastily lodged in a ceiling crevice suddenly fell to the ground 2105 | -10/Mines | Entered Materials 2105 | -9/Materials | Evolved 2 slots: Utility x2 2151 | -9/Materials | Build established: Scavenger-Mutant 2224 | -9/Materials | Discovered new exit (range 16) 2250 | -9/Materials | Identified exit to Storage 2831 | -9/Materials | Discovered new exit (range 16) 2921 | -9/Materials | Entered Storage 3070 | -9/Storage | Identified exit to Garrison 3070 | -9/Storage | Entered Garrison 3125 | -9/Garrison | Build established: Mutant 3139 | -9/Garrison | Core integrity fell below 50% 3160 | -9/Garrison | Triggered checkpoint 3166 | -9/Garrison | Lost 3 parts (1n2u) 3196 | -9/Garrison | Triggered checkpoint 3416 | -9/Garrison | Spotted B-75 Beast 3416 | -9/Garrison | Spotted B-75 Beast 3470 | -9/Garrison | Triggered checkpoint 3472 | -9/Garrison | Triggered checkpoint 3596 | -9/Garrison | Core integrity fell below 20% 3602 | -9/Garrison | Destroyed by S-10 Pest with Light Assault Rifle Last Messages --------------- 03493_ Acquired Heat Sink. 03501_ Acquired 7 matter. 03522_ S-10 Pest destroyed. 03525_ Acquired 17 matter. 03532_ Y-45 Defender suffers critical hit (Burn). 03533_ Y-45 Defender heat damages Lgt. Armor Plating. 03535_ Melted Imp. Ion Engine. 03536_ Y-45 Defender heat damages Hvy. Assault Rifle. 03539_ Y-45 Defender heat spikes uncontrollably. 03542_ Heat Sink melted. 03542_ Y-45 Defender destroyed. 03545_ Acquired 59 matter. 03585_ Y-45 Defender destroyed. 03594_ Wheel destroyed. 03602_ Core Shielding destroyed. 03602_ Knocked back. Map ----- +----------------------------------------------------+ | ???????????# [= [%[= #?? | | ???????????# ^^#######"+########################?? | | ???????????# ^ #?????# #????????????????????????? | | ???????????# #?????# #????????????????????????? | | ?+?????????# ####### #????????????????????????? | | ???????????# + #????????????????????????? | | ?????####??# ####### #????????????????????????? | | ?#???# ! ?# #?????# #????????????????????????? | | ## ## %=## #?????# #????????????????????????? | | # [= ####### #####!!! !!!#????????????? | | [ + #????????????? | | + #????????????? | | # # ## ############## #????????????? | | # ## ## ###????????????? #????????????? | | " = #???????????????? #????????????? | | " %[#???????????????????????????????? | | " ####????????????????????????????? | | " = #????????????????????????????? | | #^ ## ## #### #????????????????????????????? | | # ?# ?# #??# #??##?????#+###??????????????? | | # ? ? #### ###";##???[ !!#??????????????? | | ? + BB#??[[ !!#??????????????? | | ? #########BB### #??????????????? | | +? ##""""## #????????#= =+^ +??????????????? | | ?? ????????# #????????#[### #??????????????? | | ???????????# #????????#@#??!! !!#??????????????? | | ???????????# ?????????#%#???! !!#??????????????? | | ???????????# ?????????# #???#+###??????????????? | | ???????????# ?????????#s#??????????????????????? | | ???????????# ???????+?=%#??????????????????????? | | ???????????# ?????????#!#??????????????????????? | | ????????????????????????# #??????????????????????? | | ????????????????????????# #??????????????????????? | | ????????????????????????#+#??????????+???????????? | | ????????????????????????? ???????????????????????? | | ????????????????????????? ???????????????????????? | | ????????????????????????? ???????????????????????? | | ?????????????????????????+???????????????????????? | | ?????????????????????????????????????????????????? | | ??????????????????????????????????????????????+?+? | | ?????????????????????????+???????????????????????? | | ????????????????????????????????????????????+????? | | ?????????????????????????????????????????????????? | | ??????????????????????????????????????????????+?+? | | ?????????????????????????????????????????????????? | | +????????????????????????????????????????????????? | | ?????????????????????????????????+???????????????? | | ?????????????????????????????????????????????????? | | ?????????????????????????????????????????????????? | | ?????????????????????????????????????????????????? | +----------------------------------------------------+ Best States ------------- Heat Dissipation 60 Coolant Potential 50 Energy Generation 12 Energy Capacity 265 Matter Stores 300 Matter Capacity 300 Sight Range 16 Terrain Scan Density 10 Armor Coverage 225 Core Shielding 20 Evasion (%) 50 Recoil Reduction 2 Item Schematics ----------------- None Robot Schematics ------------------ None Fabricated ------------ Nothing Alien Tech Used ----------------- None Achievements -------------- None Challenges ------------ None Game ------ Seed ScanExplosiveDetonator Manual? 0 Play Time 00:19:56 Cumulative 169.4 hours Start 2025.01.06 @ 14:17:45 End 2025.01.06 @ 14:37:18 Sessions 1 Manual Loads 0 Difficulty Rogue Special Mode None Game No. 272 Rogue 271 Adventurer 1 Explorer 0 Win Type - Total 2 Types 2/0/0/0/0/0/0/0/0 Lore% 75 Gallery% 73 Achievement% 55 Wizard Run 0 Options --------- Layout 1 ASCII 0 Keyboard 0 Movement Mouse Keybinds 0 Fullscreen 2 Font 24/Smallcaps Map View 50x35 Zoom Use 0% Tactical HUD 1 Map Filters NONE Filters NONE Steam 0 RUN: 36bea88a-6d83-4b74-a9f8-061ef4da9aff